fUST/lending_fUST_20260620
["ID","MTS","AMOUNT","RATE_DAILY","PERIOD"]
[425815184,1781931774000,-1000.0,0.00018082,2]
[425815185,1781931774000,-2879.56,0.00018082,2]
[425815182,1781931774000,-500.0,0.00018082,2]
[425815183,1781931774000,-500.0,0.00018082,2]
[425815181,1781931774000,-847.29,0.00018082,2]
[425815180,1781931774000,-1720.19,0.00018082,2]
[425815189,1781931774000,-500.0,0.00018082,2]
[425815198,1781931774000,-744.13,0.00018082,2]
[425815220,1781931774000,-500.0,0.00018356,2]
[425815200,1781931774000,-160.0,0.00018082,3]
[425815199,1781931774000,-500.0,0.00018082,2]
[425815219,1781931774000,-603.56,0.00018356,2]
[425815218,1781931774000,-500.0,0.00018356,2]
[425815216,1781931774000,-500.0,0.00018356,2]
[425815217,1781931774000,-437.75879794,0.00018356,2]
[425815215,1781931774000,-500.0,0.00018356,2]
[425815212,1781931774000,-500.0,0.00018356,2]
[425815214,1781931774000,-500.0,0.00018356,2]
[425815211,1781931774000,-500.0,0.00018356,2]
[425815213,1781931774000,-849.63,0.00018356,2]
[425815210,1781931774000,-500.0,0.00018356,2]
[425815208,1781931774000,-500.0,0.00018356,2]
[425815202,1781931774000,-931.38471371,0.00018354,2]
[425815205,1781931774000,-230.75679266,0.00018356,2]
[425815204,1781931774000,-1375.31576565,0.00018356,2]
[425815203,1781931774000,-1409.07235231,0.00018356,2]
[425815207,1781931774000,-1556.21885249,0.00018356,2]
[425815209,1781931774000,-500.0,0.00018356,2]
[425815206,1781931774000,-504.12651787,0.00018356,2]
[425815231,1781931775000,-500.0,0.00018356,2]
[425815237,1781931775000,-500.0,0.00018356,2]
[425815235,1781931775000,-692.16,0.00018356,2]
[425815238,1781931775000,-1156.05,0.00018356,2]
[425815236,1781931775000,-1578.01,0.00018356,2]
[425815234,1781931775000,-1777.37,0.00018356,2]
[425815232,1781931775000,-1000.0,0.00018356,2]
[425815233,1781931775000,-2879.56,0.00018356,2]
[425815223,1781931775000,-1148.8,0.00018356,2]
[425815228,1781931775000,-1720.19,0.00018356,2]
[425815230,1781931775000,-500.0,0.00018356,2]
[425815242,1781931775000,-1208.21,0.00018356,2]
[425815225,1781931775000,-416.84265363,0.00018356,2]
[425815226,1781931775000,-500.0,0.00018356,2]
[425815224,1781931775000,-1828.33,0.00018356,2]
[425815221,1781931775000,-500.0,0.00018356,2]
[425815222,1781931775000,-727.28,0.00018356,2]
[425815229,1781931775000,-847.29,0.00018356,2]
[425815239,1781931775000,-500.0,0.00018356,2]
[425815227,1781931775000,-500.0,0.00018356,2]
[425815240,1781931775000,-191.41406275,0.00018356,2]
[425815260,1781931775000,-849.63,0.0001863,2]
[425815259,1781931775000,-500.0,0.0001863,2]
[425815257,1781931775000,-500.0,0.0001863,2]
[425815258,1781931775000,-500.0,0.0001863,2]
[425815256,1781931775000,-500.0,0.0001863,2]
[425815255,1781931775000,-500.0,0.0001863,2]
[425815252,1781931775000,-160.0,0.00018491,2]
[425815253,1781931775000,-160.0,0.00018491,2]
[425815254,1781931775000,-1198.03253834,0.000185,2]
[425815241,1781931775000,-500.0,0.00018356,2]
[425815248,1781931775000,-160.0,0.00018489,2]
[425815249,1781931775000,-160.0,0.00018491,2]
[425815250,1781931775000,-160.0,0.00018491,2]
[425815247,1781931775000,-1198.03253834,0.000184,2]
[425815246,1781931775000,-189.48675713,0.00018356,2]
[425815244,1781931775000,-744.13,0.00018356,2]
[425815245,1781931775000,-1786.79,0.00018356,2]
[425815243,1781931775000,-525.39,0.00018356,2]
[425815251,1781931775000,-160.0,0.00018491,2]
[425815273,1781931776000,-1720.19,0.0001863,2]
[425815275,1781931776000,-500.0,0.0001863,2]
[425815279,1781931776000,-1777.37,0.0001863,2]
[425815274,1781931776000,-847.29,0.0001863,2]
[425815276,1781931776000,-500.0,0.0001863,2]
[425815271,1781931776000,-500.0,0.0001863,2]
[425815272,1781931776000,-500.0,0.0001863,2]
[425815269,1781931776000,-1148.8,0.0001863,2]
[425815266,1781931776000,-500.0,0.0001863,2]
[425815268,1781931776000,-727.28,0.0001863,2]
[425815267,1781931776000,-500.0,0.0001863,2]
[425815264,1781931776000,-500.0,0.0001863,2]
[425815265,1781931776000,-603.56,0.0001863,2]
[425815263,1781931776000,-500.0,0.0001863,2]
[425815261,1781931776000,-500.0,0.0001863,2]
[425815262,1781931776000,-500.0,0.0001863,2]
[425815278,1781931776000,-2879.56,0.0001863,2]
[425815270,1781931776000,-1828.33,0.0001863,2]
[425815277,1781931776000,-1000.0,0.0001863,2]
[425815280,1781931776000,-692.16,0.0001863,2]
[425815281,1781931776000,-1578.01,0.0001863,2]
[425815300,1781931776000,-608.49102116,0.00018719,2]
[425815299,1781931776000,-160.0,0.00018716,2]
[425815298,1781931776000,-771.55555556,0.000187,2]
[425815297,1781931776000,-1134.22222223,0.000187,2]
[425815295,1781931776000,-3519.27142849,0.000187,2]
[425815294,1781931776000,-1198.03253834,0.000187,2]
[425815293,1781931776000,-267.09252328,0.00018685,2]
[425815292,1781931776000,-160.0,0.00018681,2]
[425815291,1781931776000,-160.0,0.00018681,2]
[425815296,1781931776000,-463.59998526,0.000187,2]
[425815290,1781931776000,-160.0,0.00018647,2]
[425815288,1781931776000,-1786.79,0.0001863,2]
[425815287,1781931776000,-525.39,0.0001863,2]
[425815286,1781931776000,-1208.21,0.0001863,2]
[425815285,1781931776000,-500.0,0.0001863,2]
[425815284,1781931776000,-500.0,0.0001863,2]
[425815282,1781931776000,-500.0,0.0001863,2]
[425815289,1781931776000,-744.13,0.0001863,2]
[425815283,1781931776000,-1156.05,0.0001863,2]
[425815315,1781931777000,-500.0,0.00018904,2]
[425815312,1781931777000,-542.52598696,0.00018904,2]
[425815313,1781931777000,-500.0,0.00018904,2]
[425815316,1781931777000,-500.0,0.00018904,2]
[425815317,1781931777000,-849.63,0.00018904,2]
[425815309,1781931777000,-150.1,0.000189,2]
[425815314,1781931777000,-500.0,0.00018904,2]
[425815310,1781931777000,-152.0,0.000189,7]
[425815303,1781931777000,-160.0,0.00018752,2]
[425815308,1781931777000,-826.01619261,0.000188,2]
[425815305,1781931777000,-312.88888889,0.00018796,2]
[425815306,1781931777000,-192.0,0.00018796,2]
[425815307,1781931777000,-1010.0,0.000188,2]
[425815304,1781931777000,-418.89711394,0.00018789,2]
[425815301,1781931777000,-906.74297066,0.00018719,2]
[425815302,1781931777000,-580.35275645,0.00018746,2]
[425815319,1781931777000,-500.0,0.00018904,2]
[425815311,1781931777000,-152.0,0.000189,7]
[425815318,1781931777000,-500.0,0.00018904,2]
[425815325,1781931777000,-727.28,0.00018904,2]
[425815323,1781931777000,-500.0,0.00018904,2]
[425815339,1781931777000,-500.0,0.00018904,2]
[425815337,1781931777000,-692.16,0.00018904,2]
[425815336,1781931777000,-1777.37,0.00018904,2]
[425815335,1781931777000,-2879.56,0.00018904,2]
[425815333,1781931777000,-500.0,0.00018904,2]
[425815334,1781931777000,-1000.0,0.00018904,2]
[425815330,1781931777000,-1720.19,0.00018904,2]
[425815332,1781931777000,-500.0,0.00018904,2]
[425815338,1781931777000,-1578.01,0.00018904,2]
[425815329,1781931777000,-500.0,0.00018904,2]
[425815331,1781931777000,-847.29,0.00018904,2]
[425815322,1781931777000,-603.56,0.00018904,2]
[425815324,1781931777000,-500.0,0.00018904,2]
[425815320,1781931777000,-500.0,0.00018904,2]
[425815327,1781931777000,-1828.33,0.00018904,2]
[425815328,1781931777000,-500.0,0.00018904,2]
[425815326,1781931777000,-1148.8,0.00018904,2]
[425815321,1781931777000,-500.0,0.00018904,2]
[425815340,1781931778000,-1156.05,0.00018904,2]
[425815341,1781931778000,-500.0,0.00018904,2]
[425815342,1781931778000,-500.0,0.00018904,2]
[425815344,1781931778000,-525.39,0.00018904,2]
[425815345,1781931778000,-1786.79,0.00018904,2]
[425815343,1781931778000,-1208.21,0.00018904,2]
[425815346,1781931778000,-744.13,0.00018904,2]
[425815349,1781931778000,-360.02929512,0.00018999,2]
[425815350,1781931778000,-3620.19125077,0.00018999,2]
[425815351,1781931778000,-10017.90324998,0.00019,2]
[425815352,1781931778000,-357623.62408945,0.00019,2]
[425815347,1781931778000,-184.27418497,0.00018986,2]
[425815348,1781931778000,-694.94880641,0.00018999,2]
[425815355,1781931874000,752.0,0.00024658,120]
[425815356,1781931897000,753.0,0.0001,10]
[425815360,1781932068000,845.99988454,0.00023359,30]
[425815422,1781932238000,-4202.21755328,0.00012698,2]
[425815424,1781932238000,-4202.21755328,0.00012698,2]
[425815395,1781932238000,-4202.21755328,0.00012698,2]
[425815397,1781932238000,-4202.21755328,0.00012698,2]
[425815394,1781932238000,-188.36826497,0.00012698,2]
[425815403,1781932238000,-4068.37878936,0.00012698,2]
[425815405,1781932238000,-4202.21755328,0.00012698,2]
[425815399,1781932238000,-133.83876392,0.00012698,2]
[425815393,1781932238000,-154.9,0.00012329,2]
[425815407,1781932238000,-4202.21755328,0.00012698,2]
[425815413,1781932238000,-4202.21755328,0.00012698,2]
[425815411,1781932238000,-4202.21755328,0.00012698,2]
[425815415,1781932238000,-4202.21755328,0.00012698,2]
[425815417,1781932238000,-4202.21755328,0.00012698,2]
[425815420,1781932238000,-4202.21755328,0.00012698,2]
[425815419,1781932238000,-4202.21755328,0.00012698,2]
[425815409,1781932238000,-4202.21755328,0.00012698,2]
[425815461,1781932239000,-500.0,0.00012698,2]
[425815453,1781932239000,-500.0,0.00012698,2]
[425815448,1781932239000,-500.0,0.00012698,2]
[425815446,1781932239000,-190.1512707,0.00012698,2]
[425815438,1781932239000,-500.0,0.00012698,2]
[425815436,1781932239000,-184.41647683,0.00012698,2]
[425815430,1781932239000,-500.0,0.00012698,2]
[425815440,1781932239000,-500.0,0.00012698,2]
[425815428,1781932239000,-500.0,0.00012698,2]
[425815432,1781932239000,-500.0,0.00012698,2]
[425815434,1781932239000,-500.0,0.00012698,2]
[425815426,1781932239000,-504.58162929,0.00012698,2]
[425815459,1781932239000,-500.0,0.00012698,2]
[425815442,1781932239000,-500.0,0.00012698,2]
[425815451,1781932239000,-210.1475048,0.00012698,2]
[425815444,1781932239000,-500.0,0.00012698,2]
[425815455,1781932239000,-500.0,0.00012698,2]
[425815449,1781932239000,-500.0,0.00012698,2]
[425815479,1781932239000,-500.0,0.00012698,2]
[425815481,1781932239000,-500.0,0.00012698,2]
[425815482,1781932239000,-3647.43041803,0.00012699,2]
[425815475,1781932239000,-500.0,0.00012698,2]
[425815484,1781932239000,-16561.89616577,0.00012701,2]
[425815476,1781932239000,-500.0,0.00012698,2]
[425815473,1781932239000,-500.0,0.00012698,2]
[425815477,1781932239000,-500.0,0.00012698,2]
[425815471,1781932239000,-500.0,0.00012698,2]
[425815469,1781932239000,-500.0,0.00012698,2]
[425815463,1781932239000,-204.13728735,0.00012698,2]
[425815467,1781932239000,-500.0,0.00012698,2]
[425815465,1781932239000,-500.0,0.00012698,2]
[425815457,1781932239000,-500.0,0.00012698,2]
[425815478,1781932239000,-560.42187032,0.00012698,2]
[425815908,1781932243000,-22625.1664914,0.00012701,2]
[425816227,1781932246000,-5292.85796884,0.00012701,2]
[425816774,1781932254000,-10872.78149925,0.00012701,2]
[425816775,1781932254000,-17561.0186629,0.00012701,2]
[425816787,1781932481000,570.62406498,0.00023285,120]
[425817261,1781933441000,-63.10283788,0.0001232,7]
[425817269,1781933441000,-3487.8347006,0.00012492,2]
[425817263,1781933441000,-151.0,0.0001232,2]
[425817273,1781933441000,-3487.8347006,0.00012492,2]
[425817259,1781933441000,-270.34407524,0.0001232,7]
[425817265,1781933441000,-162.91613288,0.00012393,2]
[425817275,1781933441000,-2878.61852594,0.00012492,2]
[425817271,1781933441000,-3487.8347006,0.00012492,2]
[425817277,1781933441000,-329.4,0.00012492,2]
[425817267,1781933441000,-3487.8347006,0.00012492,2]
[425817542,1781933443000,-3487.8347006,0.00012492,2]
[425817540,1781933443000,-279.81617466,0.00012492,2]
[425817543,1781933444000,-3487.8347006,0.00012492,2]
[425817545,1781933444000,-464.4037368,0.00012492,2]
[425817549,1781933444000,-500.0,0.00012492,2]
[425817556,1781933444000,-366.52919787,0.00012492,2]
[425817553,1781933444000,-514.62717725,0.00012492,2]
[425817554,1781933444000,-2973.20752335,0.00012492,2]
[425817551,1781933444000,-340.04687448,0.00012492,2]
[425817559,1781933444000,-508.60921729,0.00012492,2]
[425817558,1781933444000,-2110.0,0.00012492,2]
[425817575,1781933444000,-51.32048345,0.00012492,2]
[425817573,1781933444000,-502.69628544,0.00012492,2]
[425817578,1781933444000,-1621.27505736,0.00012492,2]
[425817577,1781933444000,-3436.51421715,0.00012492,2]
[425817548,1781933444000,-2.72262846,0.00012492,2]
[425817822,1781933446000,-329.435,0.00012492,2]
[425817857,1781933447000,-17533.99151662,0.00012494,2]
[425817855,1781933447000,-3487.8347006,0.00012492,2]
[425817853,1781933447000,-1537.12464324,0.00012492,2]
[425818678,1781933473000,-8231.76803133,0.00012494,2]
[425818681,1781933545000,210.855934,0.00024657,120]
[425818705,1781934631000,-302.0,0.00011591,2]
[425818704,1781934631000,-527.80976733,0.00011591,2]
[425818703,1781934631000,-440.82740409,0.00011591,2]
[425818702,1781934631000,-1742.55011859,0.00011591,2]
[425818783,1781934638000,-927.10143175,0.00011591,2]
[425819195,1781934643000,-151.0,0.00011592,2]
[425819193,1781934643000,-5361.34983539,0.00011591,2]
[425819197,1781934643000,-151.0,0.0001195,2]
[425819199,1781934643000,-300.0,0.00012389,2]
[425819201,1781934643000,-635.82677829,0.0001239,2]
[425819467,1781934646000,-936.8346484,0.0001239,2]
[425819466,1781934646000,-2672.63740595,0.0001239,2]
[425819468,1781934646000,-2443.72097783,0.0001239,2]
[425819465,1781934646000,-1233.48244458,0.0001239,2]
[425819464,1781934646000,-2592.80955433,0.0001239,2]
[425819518,1781934682000,742.79920892,0.00023277,30]
[425819528,1781935055000,73305.85987534,7.6e-05,2]
[425819563,1781935832000,-782.32071685,0.00011272,2]
[425819933,1781935840000,-902.9028812,0.00011387,2]
[425819900,1781935840000,-404.85017212,0.00011387,2]
[425819898,1781935840000,-300.0,0.00011386,2]
[425819897,1781935840000,-2791.04587818,0.00011272,2]
[425820250,1781935843000,-388.39333647,0.00011387,2]
[425820534,1781935846000,-686.55519799,0.00011387,2]
[425820532,1781935846000,-3303.85361021,0.00011387,2]
[425820771,1781936062000,1266.81,0.00023272,30]
[425820776,1781936166000,15781.09,0.00023272,120]
[425820788,1781936930000,3003.0,0.0001,2]
[425820803,1781937032000,-4313.44480201,0.00011387,2]
[425820802,1781937032000,-445.97251042,0.0001115,2]
[425820804,1781937032000,-4281.56814239,0.00011387,2]
[425820801,1781937032000,-1133.11980988,0.0001115,2]
[425820927,1781937038000,-9705.76639,0.00011395,2]
[425820928,1781937038000,-14930.62922555,0.000115,2]
[425820926,1781937038000,-3887.6356313,0.00011387,2]
[425820918,1781937038000,-1112.3643687,0.00011387,2]
[425820916,1781937038000,-718.43185761,0.00011387,2]
[425821448,1781937054000,-2289.90232947,0.00011899,2]
[425821447,1781937054000,-4325.24891935,0.000115,2]
[425821449,1781937070000,-1310.05555859,0.00011899,2]
[425821503,1781938233000,-8.08945899,0.00010753,2]
[425821502,1781938233000,-425.36865108,0.00010215,2]
[425822088,1781938334000,3000.0,0.0002327,120]
[425822098,1781938760000,270.66688809,9.704e-05,2]
[425822099,1781938764000,481.18557882,9.704e-05,2]
[425822100,1781938768000,751.85246691,9.704e-05,2]
[425822104,1781938854000,-298.43179019,0.00010041,2]
[425822105,1781938871000,-1906.5501601,0.00010174,7]
[425822107,1781938888000,-533.97883783,0.00010174,7]
[425822109,1781938904000,-415.54403911,0.00010215,2]
[425822110,1781938921000,-335.13427814,0.00010215,2]
[425822111,1781938922000,-156.088,0.00010215,2]
[425822113,1781938938000,-67.21921796,0.00010215,2]
[425822115,1781938954000,-348.56861053,0.00010215,2]
[425822116,1781938968000,-234.56666876,0.00010753,2]
[425822117,1781938968000,-422.22000377,0.00010753,2]
[425822118,1781938968000,-750.61334003,0.00010753,2]
[425822119,1781938968000,-1172.8333438,0.00010753,2]
[425822120,1781938968000,-1688.88001507,0.00010753,2]
[425822123,1781938968000,-775.671264,0.00011421,2]
[425822122,1781938968000,-436.315086,0.00011421,2]
[425822124,1781938968000,-1211.98635,0.00011421,2]
[425822125,1781938968000,-242.39727,0.00011421,2]
[425822126,1781938968000,-1113.34674502,0.000115,2]
[425822121,1781938968000,-776.38991355,0.00011126,2]
[425822128,1781939018000,-1116.17,0.000115,2]
[425822131,1781939056000,-612.01078177,0.00011182,2]
[425822132,1781939056000,-164.15322836,0.00011182,2]
[425822130,1781939056000,-340.00598987,0.00011182,2]
[425822135,1781939115000,-1700.02994936,0.00011182,2]
[425822134,1781939115000,-923.86593923,0.00011182,2]
[425822136,1781939115000,-2448.04312708,0.00011182,2]
[425822139,1781939115000,-334.19195816,0.00011549,2]
[425822138,1781939115000,-1060.31426994,0.000115,2]
[425822137,1781939115000,-3332.05870075,0.00011182,2]
[425822140,1781939115000,-3440.89605548,0.00012,2]
[425822145,1781939321000,3000.0,0.00023271,120]
[425822276,1781939447000,-381.93366647,0.00011673,2]
[425822278,1781939447000,-360.82683076,0.00012124,2]
[425822277,1781939447000,-1022.35342138,0.00011955,2]
[425822279,1781939447000,-596.77135386,0.00012143,2]
[425822281,1781939447000,-1010.0,0.000123,2]
[425822291,1781939447000,-151.5,0.00013424,2]
[425822280,1781939447000,-500.0,0.00012277,2]
[425822283,1781939447000,-248.511256,0.00012726,2]
[425822287,1781939447000,-248.511256,0.00013262,2]
[425822284,1781939447000,-500.0,0.00012923,2]
[425822286,1781939447000,-281.39271466,0.00013077,2]
[425822285,1781939447000,-600.0,0.00013054,2]
[425822274,1781939447000,-3846.31941883,0.00011337,2]
[425822288,1781939447000,-745.0,0.00013314,2]
[425822282,1781939447000,-228.83,0.00012458,2]
[425822297,1781939447000,-250.0,0.00013534,2]
[425822293,1781939447000,-219.52137357,0.00013424,2]
[425822299,1781939447000,-958.0,0.00013534,2]
[425822295,1781939447000,-232.959,0.00013534,2]
[425822301,1781939447000,-1119.47471599,0.00013534,2]
[425822275,1781939447000,-2016.06712687,0.00011337,2]
[425822300,1781939447000,-1435.606,0.00013534,2]
[425822294,1781939447000,-151.263,0.00013534,2]
[425822296,1781939447000,-150.93,0.00013534,2]
[425822292,1781939447000,-151.5,0.00013424,2]
[425822290,1781939447000,-445.0,0.00013314,2]
[425822298,1781939447000,-268.803,0.00013534,2]
[425822289,1781939447000,-194.565,0.00013314,2]
[425822888,1781940419000,3394.33939746,0.0001,2]
[425822893,1781940598000,1056.54617899,0.0001,2]
[425822918,1781940632000,-1552.25513614,0.00011788,2]
[425822917,1781940632000,-300.0,0.00011787,2]
[425822923,1781940632000,-2844.53477316,0.00011788,2]
[425822927,1781940632000,-317.58448528,0.00012192,7]
[425822929,1781940632000,-500.0,0.00012878,2]
[425822925,1781940632000,-2477.6283478,0.00011788,2]
[425822936,1781940632000,-427.99775779,0.0001332,2]
[425822932,1781940632000,-374.49803807,0.0001332,2]
[425822941,1781940632000,-272.35,0.00013467,2]
[425822933,1781940632000,-321.27008222,0.0001332,2]
[425822939,1781940632000,-181.98447847,0.0001332,2]
[425822937,1781940632000,-486.09327158,0.0001332,2]
[425822942,1781940632000,-28.9372721,0.00013467,2]
[425822945,1781940638000,-445.0,0.00013467,2]
[425822946,1781940638000,-201.85313661,0.00013467,2]
[425822944,1781940638000,-165.6277279,0.00013467,2]
[425823394,1781940672000,-1209.78593567,0.00013424,2]
[425823400,1781940745000,274.54191429,0.00023272,120]
[425823403,1781940920000,184.0,0.00023621,120]
[425823405,1781941098000,2705.73128555,0.00023272,120]
[425823466,1781941831000,-1018.8513524,0.00013467,2]
[425823450,1781941831000,-231.37051924,0.00010457,7]
[425823458,1781941831000,-1418.0,0.00013424,2]
[425823463,1781941831000,-445.0,0.00013424,2]
[425823468,1781941831000,-200.0,0.00013467,2]
[425823461,1781941831000,-958.0,0.00013424,2]
[425823459,1781941831000,-1841.0,0.00013424,2]
[425823454,1781941831000,-3297.592432,0.00012135,2]
[425823472,1781941831000,-320.0642901,0.00013556,2]
[425823470,1781941831000,-292.55196033,0.00013467,2]
[425823465,1781941831000,-186.0,0.00013424,2]
[425823456,1781941831000,-207.712774,0.00013303,2]
[425823452,1781941831000,-264.85896031,0.00011099,2]
[425823479,1781941832000,-947.79398154,0.00013699,2]
[425823480,1781941832000,-500.0,0.00014269,2]
[425823487,1781941832000,-724.9527775,0.00015,2]
[425823484,1781941832000,-196.928831,0.00014906,2]
[425823474,1781941832000,-154.15,0.00013684,2]
[425823490,1781941832000,-708.21654019,0.00015002,2]
[425823489,1781941832000,-3599.95788806,0.00015001,2]
[425823493,1781941832000,-320.81182996,0.00015002,2]
[425823495,1781941832000,-799.76527736,0.00015002,2]
[425823483,1781941832000,-159.76,0.00014393,2]
[425823592,1781941838000,-217.98201128,0.00015002,2]
[425823593,1781941838000,-178.32756964,0.00015004,2]
[425823594,1781941838000,-545.72319982,0.0001502,2]
[425823595,1781941838000,-66.91133244,0.00015021,2]
[425823597,1781941838000,-158.77801078,0.00015094,2]
[425823599,1781941838000,-598.60799334,0.00015102,2]
[425823600,1781941838000,-11148.21918532,0.00015104,2]
[425823596,1781941838000,-433.08866756,0.00015021,2]
[425823598,1781941838000,-508.89564879,0.00015102,2]
[425823709,1781941840000,-3186.45665318,0.00015104,2]
[425823996,1781941843000,-4902.37248574,0.00015104,2]
[425823989,1781941843000,-309.18513893,0.00015104,2]
[425824242,1781941846000,-1974.63957015,0.00013994,2]
[425824263,1781941846000,-162.39746507,0.000149,2]
[425824265,1781941846000,-73856.3367897,0.00015104,2]
[425824262,1781941846000,-431.80589295,0.00013994,2]
[425824705,1781941876000,157.67,0.00024,120]
[425824729,1781942454000,-1116.17,0.000115,2]
[425824736,1781942619000,1218.15952324,0.0001,2]
[425824747,1781942919000,1218.15952324,0.0001,2]
[425824897,1781943038000,-500.0,0.00014482,2]
[425824896,1781943038000,-500.0,0.00014482,2]
[425824893,1781943038000,-3191.22220405,0.00014482,2]
[425824894,1781943038000,-500.0,0.00014482,2]
[425824895,1781943038000,-3191.22220405,0.00014482,2]
[425824892,1781943038000,-500.0,0.00014482,2]
[425824890,1781943038000,-500.0,0.00014482,2]
[425824891,1781943038000,-500.0,0.00014482,2]
[425824888,1781943038000,-40262.87132495,0.00014383,2]
[425824889,1781943038000,-274.02502892,0.00014482,2]
[425824885,1781943038000,-690.7198354,0.00014383,2]
[425824887,1781943038000,-811.51114452,0.00014383,2]
[425824881,1781943038000,-1418.0,0.00013588,2]
[425824884,1781943038000,-3420.04796901,0.00014383,2]
[425824882,1781943038000,-1841.0,0.00013588,2]
[425824883,1781943038000,-632.006429,0.00014269,2]
[425824879,1781943038000,-445.0,0.00013398,2]
[425824880,1781943038000,-186.0,0.00013398,2]
[425824900,1781943038000,-368.17620624,0.00014482,2]
[425824878,1781943038000,-369.36196671,0.00013026,7]
[425824886,1781943038000,-2740.45315408,0.00014383,2]
[425824899,1781943038000,-3191.22220405,0.00014482,2]
[425824877,1781943038000,-1518.87151632,0.00013,2]
[425824903,1781943038000,-500.0,0.00014482,2]
[425824901,1781943038000,-500.0,0.00014482,2]
[425824920,1781943038000,-3191.22220405,0.00014482,2]
[425824922,1781943038000,-374.32023036,0.00014482,2]
[425824923,1781943038000,-65.02671799,0.00014482,2]
[425824919,1781943038000,-500.0,0.00014482,2]
[425824917,1781943038000,-500.0,0.00014482,2]
[425824916,1781943038000,-3191.22220405,0.00014482,2]
[425824918,1781943038000,-3191.22220405,0.00014482,2]
[425824913,1781943038000,-3191.22220405,0.00014482,2]
[425824915,1781943038000,-500.0,0.00014482,2]
[425824912,1781943038000,-500.0,0.00014482,2]
[425824921,1781943038000,-60.3197276,0.00014482,2]
[425824914,1781943038000,-3191.22220405,0.00014482,2]
[425824911,1781943038000,-446.59798241,0.00014482,2]
[425824898,1781943038000,-500.0,0.00014482,2]
[425824904,1781943038000,-500.0,0.00014482,2]
[425824905,1781943038000,-3191.22220405,0.00014482,2]
[425824902,1781943038000,-3191.22220405,0.00014482,2]
[425824909,1781943038000,-500.0,0.00014482,2]
[425824908,1781943038000,-500.0,0.00014482,2]
[425824907,1781943038000,-3191.22220405,0.00014482,2]
[425824910,1781943038000,-3191.22220405,0.00014482,2]
[425824906,1781943038000,-500.0,0.00014482,2]
[425824940,1781943044000,-500.0,0.00014482,2]
[425825024,1781943046000,-3191.22220405,0.00014482,2]
[425825019,1781943046000,-3191.22220405,0.00014482,2]
[425825023,1781943046000,-3191.22220405,0.00014482,2]
[425825021,1781943046000,-500.0,0.00014482,2]
[425825017,1781943046000,-500.0,0.00014482,2]
[425825016,1781943046000,-3191.22220405,0.00014482,2]
[425824992,1781943046000,-2626.19548606,0.00014482,2]
[425825010,1781943046000,-2471.09221917,0.00014482,2]
[425825012,1781943046000,-500.0,0.00014482,2]
[425824995,1781943046000,-720.12998488,0.00014482,2]
[425824994,1781943046000,-500.0,0.00014482,2]
[425825026,1781943046000,-500.0,0.00014482,2]
[425825014,1781943046000,-500.0,0.00014482,2]
[425825028,1781943046000,-3191.22220405,0.00014482,2]
[425825040,1781943046000,-3191.22220405,0.00014482,2]
[425825032,1781943046000,-3191.22220405,0.00014482,2]
[425825030,1781943046000,-500.0,0.00014482,2]
[425825057,1781943046000,-3191.22220405,0.00014482,2]
[425825055,1781943046000,-3191.22220405,0.00014482,2]
[425825059,1781943046000,-3191.22220405,0.00014482,2]
[425825050,1781943046000,-3191.22220405,0.00014482,2]
[425825054,1781943046000,-3191.22220405,0.00014482,2]
[425825052,1781943046000,-3191.22220405,0.00014482,2]
[425825046,1781943046000,-3191.22220405,0.00014482,2]
[425825045,1781943046000,-500.0,0.00014482,2]
[425825041,1781943046000,-500.0,0.00014482,2]
[425825043,1781943046000,-3191.22220405,0.00014482,2]
[425825038,1781943046000,-3191.22220405,0.00014482,2]
[425825048,1781943046000,-3191.22220405,0.00014482,2]
[425825079,1781943047000,-3191.22220405,0.00014482,2]
[425825075,1781943047000,-3191.22220405,0.00014482,2]